[Event "*** Titled Tuesday Blitz"]
[Site "Chess.com"]
[Date "2020.11.03"]
[Round "9"]
[White "CaspiIsrael"]
[Black "AryanTari"]
[Result "0-1"]
[WhiteElo "2606"]
[BlackElo "2880"]
[TimeControl "180+1"]
[EndTime "11:50:37 PST"]
[Termination "AryanTari won by checkmate"]

1. e4 {[%clk 0:03:00.9]} 1... c6 {[%clk 0:02:58.5]} 2. d3 {[%clk 0:02:59.1]}
2... d5 {[%clk 0:02:59.4]} 3. Nd2 {[%clk 0:02:59.4]} 3... Qc7 {[%clk 0:02:59.8]}
4. Ngf3 {[%clk 0:02:59.2]} 4... e5 {[%clk 0:02:59.6]} 5. g3 {[%clk 0:02:55.3]}
5... Nf6 {[%clk 0:02:59.3]} 6. Bg2 {[%clk 0:02:55.6]} 6... dxe4 {[%clk
0:02:59.6]} 7. dxe4 {[%clk 0:02:55.3]} 7... Bc5 {[%clk 0:02:58.4]} 8. O-O {[%clk
0:02:54.9]} 8... O-O {[%clk 0:02:59]} 9. c3 {[%clk 0:02:55.1]} 9... a5 {[%clk
0:02:58.9]} 10. a4 {[%clk 0:02:54.6]} 10... h6 {[%clk 0:02:52]} 11. Qc2 {[%clk
0:02:45]} 11... Nbd7 {[%clk 0:02:49.3]} 12. h3 {[%clk 0:02:44.6]} 12... Re8
{[%clk 0:02:47.5]} 13. Nc4 {[%clk 0:02:44.5]} 13... Nf8 {[%clk 0:02:36]} 14. Rb1
{[%clk 0:02:35.9]} 14... b5 {[%clk 0:02:17.2]} 15. axb5 {[%clk 0:02:04.8]} 15...
cxb5 {[%clk 0:02:17.1]} 16. Ncxe5 {[%clk 0:02:05.7]} 16... Rxe5 {[%clk
0:02:13.5]} 17. Nxe5 {[%clk 0:02:06.6]} 17... Qxe5 {[%clk 0:02:09.4]} 18. Bf4
{[%clk 0:02:06.8]} 18... Qe6 {[%clk 0:02:09.8]} 19. e5 {[%clk 0:02:06.8]} 19...
Nd5 {[%clk 0:02:10]} 20. Qb3 {[%clk 0:02:02.5]} 20... Bb7 {[%clk 0:01:11.2]} 21.
Qxb5 {[%clk 0:02:01.7]} 21... Nxf4 {[%clk 0:01:11.4]} 22. Qxb7 {[%clk
0:01:20.2]} 22... Ne2+ {[%clk 0:00:47.9]} 23. Kh2 {[%clk 0:01:18.8]} 23... Rd8
{[%clk 0:00:48.8]} 24. Qe4 {[%clk 0:01:05.2]} 24... Rd2 {[%clk 0:00:47.7]} 25.
Rbe1 {[%clk 0:00:55.1]} 25... f5 {[%clk 0:00:29.4]} 26. exf6 {[%clk 0:00:46]}
26... Qxe4 {[%clk 0:00:30]} 27. Bxe4 {[%clk 0:00:45.4]} 27... Rxb2 {[%clk
0:00:30.7]} 28. Bd5+ {[%clk 0:00:17.1]} 28... Kh8 {[%clk 0:00:30.6]} 29. fxg7+
{[%clk 0:00:17.1]} 29... Kxg7 {[%clk 0:00:31.5]} 30. c4 {[%clk 0:00:17.2]} 30...
a4 {[%clk 0:00:30.3]} 31. Kg2 {[%clk 0:00:16.4]} 31... a3 {[%clk 0:00:30.2]} 32.
Ra1 {[%clk 0:00:15.4]} 32... Nd7 {[%clk 0:00:27]} 33. Rfe1 {[%clk 0:00:14]}
33... Ne5 {[%clk 0:00:26.9]} 34. Red1 {[%clk 0:00:11.5]} 34... Nc3 {[%clk
0:00:25.7]} 35. Rf1 {[%clk 0:00:11.2]} 35... Nd3 {[%clk 0:00:25.7]} 36. h4
{[%clk 0:00:09.9]} 36... Nxf2 {[%clk 0:00:24.4]} 37. Kf3 {[%clk 0:00:10.1]}
37... Nd3 {[%clk 0:00:19]} 38. Kg4 {[%clk 0:00:09.6]} 38... Ne5+ {[%clk
0:00:15.9]} 39. Kf5 {[%clk 0:00:09.7]} 39... Re2 {[%clk 0:00:13.3]} 40. Rae1
{[%clk 0:00:06.6]} 40... Rxe1 {[%clk 0:00:08.7]} 41. Rxe1 {[%clk 0:00:07.5]}
41... Nd3 {[%clk 0:00:09.2]} 42. Ra1 {[%clk 0:00:07.4]} 42... a2 {[%clk
0:00:09.7]} 43. g4 {[%clk 0:00:06.6]} 43... Nb4 {[%clk 0:00:07.4]} 44. g5 {[%clk
0:00:06]} 44... hxg5 {[%clk 0:00:07.4]} 45. hxg5 {[%clk 0:00:06.1]} 45... Nc2
{[%clk 0:00:07.9]} 46. Rxa2 {[%clk 0:00:05.3]} 46... Nxa2 {[%clk 0:00:08.8]} 47.
Be4 {[%clk 0:00:05.3]} 47... Ne3+ {[%clk 0:00:08.4]} 48. Ke6 {[%clk 0:00:05.8]}
48... Nb4 {[%clk 0:00:07.6]} 49. Bd5 {[%clk 0:00:06]} 49... Nbxd5 {[%clk
0:00:06.7]} 50. cxd5 {[%clk 0:00:05.8]} 50... Nc4 {[%clk 0:00:07.2]} 51. Kd7
{[%clk 0:00:04.6]} 51... Nd6 {[%clk 0:00:08.1]} 52. Kc6 {[%clk 0:00:04.8]} 52...
Ba3 {[%clk 0:00:08.6]} 53. Kd7 {[%clk 0:00:05.1]} 53... Kg6 {[%clk 0:00:09.2]}
54. Ke6 {[%clk 0:00:05.5]} 54... Kxg5 {[%clk 0:00:09.9]} 55. Kd7 {[%clk
0:00:06.2]} 55... Kf5 {[%clk 0:00:10.4]} 56. Kc6 {[%clk 0:00:07.1]} 56... Ke5
{[%clk 0:00:11.3]} 57. Kd7 {[%clk 0:00:07.5]} 57... Kxd5 {[%clk 0:00:11.8]} 58.
Kc7 {[%clk 0:00:08.4]} 58... Bc5 {[%clk 0:00:12.4]} 59. Kd7 {[%clk 0:00:09.3]}
59... Ne4 {[%clk 0:00:13]} 60. Kc7 {[%clk 0:00:09.8]} 60... Bd6+ {[%clk
0:00:13.5]} 61. Kd7 {[%clk 0:00:10.7]} 61... Nf6+ {[%clk 0:00:13.8]} 62. Kd8
{[%clk 0:00:10.7]} 62... Kc6 {[%clk 0:00:13.8]} 63. Kc8 {[%clk 0:00:10.9]} 63...
Nd5 {[%clk 0:00:14.4]} 64. Kd8 {[%clk 0:00:10.8]} 64... Bc7+ {[%clk 0:00:14.9]}
65. Ke8 {[%clk 0:00:10.1]} 65... Kd6 {[%clk 0:00:15.5]} 66. Kf7 {[%clk
0:00:10.5]} 66... Ke5 {[%clk 0:00:16]} 67. Kg6 {[%clk 0:00:10.9]} 67... Bb6
{[%clk 0:00:16]} 68. Kf7 {[%clk 0:00:10.8]} 68... Kf5 {[%clk 0:00:15.9]} 69. Ke8
{[%clk 0:00:11.3]} 69... Ke6 {[%clk 0:00:16.4]} 70. Kf8 {[%clk 0:00:11.7]} 70...
Ne7 {[%clk 0:00:16.8]} 71. Ke8 {[%clk 0:00:11.2]} 71... Bc7 {[%clk 0:00:16.5]}
72. Kf8 {[%clk 0:00:11.3]} 72... Nf5 {[%clk 0:00:17]} 73. Ke8 {[%clk 0:00:11]}
73... Ng7+ {[%clk 0:00:17.4]} 74. Kf8 {[%clk 0:00:11.1]} 74... Kf6 {[%clk
0:00:18.1]} 75. Kg8 {[%clk 0:00:11.4]} 75... Kg6 {[%clk 0:00:18.7]} 76. Kf8
{[%clk 0:00:11.2]} 76... Bd6+ {[%clk 0:00:19.3]} 77. Kg8 {[%clk 0:00:11.7]}
77... Nf5 {[%clk 0:00:20]} 78. Kh8 {[%clk 0:00:11.5]} 78... Bf8 {[%clk
0:00:20.6]} 79. Kg8 {[%clk 0:00:11.4]} 79... Bh6 {[%clk 0:00:21.3]} 80. Kh8
{[%clk 0:00:11.5]} 80... Bg7+ {[%clk 0:00:22]} 81. Kg8 {[%clk 0:00:12.1]} 81...
Nh6# {[%clk 0:00:22.9]} 0-1

[Event "*** Titled Tuesday Blitz"]
[Site "Chess.com"]
[Date "2020.11.03"]
[Round "9"]
[White "karwowskikacper"]
[Black "A-S-00"]
[Result "0-1"]
[WhiteElo "2451"]
[BlackElo "2338"]
[TimeControl "180+1"]
[EndTime "11:50:38 PST"]
[Termination "A-S-00 won by checkmate"]

1. d4 {[%clk 0:03:00.9]} 1... Nf6 {[%clk 0:02:59.1]} 2. Bg5 {[%clk 0:03:00]}
2... Ne4 {[%clk 0:02:55.9]} 3. Bf4 {[%clk 0:02:56.1]} 3... d5 {[%clk 0:02:54.9]}
4. Nc3 {[%clk 0:02:54.1]} 4... Nxc3 {[%clk 0:02:50.3]} 5. bxc3 {[%clk 0:02:55]}
5... c5 {[%clk 0:02:49.9]} 6. e3 {[%clk 0:02:43.4]} 6... Nc6 {[%clk 0:02:47.3]}
7. Nf3 {[%clk 0:02:40]} 7... g6 {[%clk 0:02:41.6]} 8. Bb5 {[%clk 0:02:24.1]}
8... Bg7 {[%clk 0:02:37.1]} 9. Bxc6+ {[%clk 0:02:24]} 9... bxc6 {[%clk
0:02:36.5]} 10. O-O {[%clk 0:02:17.4]} 10... O-O {[%clk 0:02:35.2]} 11. Qd2
{[%clk 0:02:13.2]} 11... cxd4 {[%clk 0:02:29.7]} 12. cxd4 {[%clk 0:02:11.6]}
12... c5 {[%clk 0:02:23.9]} 13. c3 {[%clk 0:02:09.4]} 13... Bf5 {[%clk
0:02:15.5]} 14. Rfd1 {[%clk 0:02:03.4]} 14... c4 {[%clk 0:02:12.1]} 15. h3
{[%clk 0:01:54]} 15... Qa5 {[%clk 0:02:09.3]} 16. g4 {[%clk 0:01:51.1]} 16...
Be4 {[%clk 0:01:05.8]} 17. Ne1 {[%clk 0:01:47.9]} 17... g5 {[%clk 0:01:03.3]}
18. Bxg5 {[%clk 0:01:38.5]} 18... f6 {[%clk 0:01:03.6]} 19. Bh4 {[%clk
0:01:35.1]} 19... Rab8 {[%clk 0:00:59.3]} 20. f3 {[%clk 0:01:22.9]} 20... Bg6
{[%clk 0:00:58.8]} 21. Bg3 {[%clk 0:01:22.1]} 21... Rb5 {[%clk 0:00:55.5]} 22.
h4 {[%clk 0:01:16.4]} 22... h6 {[%clk 0:00:45.4]} 23. h5 {[%clk 0:01:15.2]}
23... Bh7 {[%clk 0:00:45.5]} 24. f4 {[%clk 0:01:04.1]} 24... Be4 {[%clk
0:00:42.1]} 25. f5 {[%clk 0:01:01.7]} 25... Qb6 {[%clk 0:00:40.9]} 26. Qf2
{[%clk 0:00:45.1]} 26... e6 {[%clk 0:00:40.7]} 27. Ng2 {[%clk 0:00:34.2]} 27...
exf5 {[%clk 0:00:39.6]} 28. gxf5 {[%clk 0:00:33.2]} 28... Rb2 {[%clk 0:00:37.2]}
29. Rd2 {[%clk 0:00:21.2]} 29... Rxd2 {[%clk 0:00:36.9]} 30. Qxd2 {[%clk
0:00:22.1]} 30... Bxf5 {[%clk 0:00:37.2]} 31. Nf4 {[%clk 0:00:20.5]} 31... Be4
{[%clk 0:00:37.2]} 32. Rf1 {[%clk 0:00:19.7]} 32... Rc8 {[%clk 0:00:30.8]} 33.
Ng6 {[%clk 0:00:12.5]} 33... Qe6 {[%clk 0:00:28.4]} 34. Qf2 {[%clk 0:00:10.7]}
34... Re8 {[%clk 0:00:25.9]} 35. Bf4 {[%clk 0:00:10.3]} 35... Qg4+ {[%clk
0:00:24.3]} 36. Qg3 {[%clk 0:00:07.9]} 36... Qxh5 {[%clk 0:00:22.9]} 37. Nh4
{[%clk 0:00:07.1]} 37... Kf7 {[%clk 0:00:21.6]} 38. Kf2 {[%clk 0:00:07.2]} 38...
Re7 {[%clk 0:00:18.1]} 39. Rg1 {[%clk 0:00:07.2]} 39... Kg8 {[%clk 0:00:15]} 40.
Qg4 {[%clk 0:00:06.3]} 40... Qxg4 {[%clk 0:00:14.1]} 41. Rxg4 {[%clk 0:00:07.2]}
41... Rb7 {[%clk 0:00:14.1]} 42. Bxh6 {[%clk 0:00:06.7]} 42... Kh7 {[%clk
0:00:11.8]} 43. Bxg7 {[%clk 0:00:06.5]} 43... Rxg7 {[%clk 0:00:12.1]} 44. Rxg7+
{[%clk 0:00:07.4]} 44... Kxg7 {[%clk 0:00:12.5]} 45. Kg3 {[%clk 0:00:07.9]}
45... Kf7 {[%clk 0:00:10.8]} 46. Kf4 {[%clk 0:00:08.2]} 46... Ke6 {[%clk
0:00:11.3]} 47. a3 {[%clk 0:00:06.8]} 47... a5 {[%clk 0:00:11.4]} 48. Kg4 {[%clk
0:00:04.6]} 48... Ke7 {[%clk 0:00:11.1]} 49. Kg3 {[%clk 0:00:04.8]} 49... Ke6
{[%clk 0:00:11.3]} 50. Kf4 {[%clk 0:00:05]} 50... Kd6 {[%clk 0:00:10.4]} 51.
Nf5+ {[%clk 0:00:03]} 51... Kc6 {[%clk 0:00:10.3]} 52. Ne7+ {[%clk 0:00:02.5]}
52... Kb5 {[%clk 0:00:10.5]} 53. Nc8 {[%clk 0:00:01.8]} 53... Ka4 {[%clk
0:00:10.3]} 54. Nb6+ {[%clk 0:00:02.2]} 54... Kxa3 {[%clk 0:00:09.9]} 55. Nxc4+
{[%clk 0:00:03.1]} 55... Ka4 {[%clk 0:00:06.8]} 56. Nd6 {[%clk 0:00:02.7]} 56...
Bd3 {[%clk 0:00:04.9]} 57. c4 {[%clk 0:00:02.4]} 57... dxc4 {[%clk 0:00:04.6]}
58. Ne4 {[%clk 0:00:02.8]} 58... Bxe4 {[%clk 0:00:03.6]} 59. Kxe4 {[%clk
0:00:03.7]} 59... c3 {[%clk 0:00:04.1]} 60. Kd3 {[%clk 0:00:04.2]} 60... Kb3
{[%clk 0:00:04]} 61. d5 {[%clk 0:00:04.7]} 61... c2 {[%clk 0:00:04.9]} 62. d6
{[%clk 0:00:05.1]} 62... c1=Q {[%clk 0:00:04.7]} 63. Ke4 {[%clk 0:00:05.5]}
63... Qc2+ {[%clk 0:00:04.8]} 64. Kd5 {[%clk 0:00:05]} 64... Qd3+ {[%clk
0:00:04.5]} 65. Kc5 {[%clk 0:00:05.4]} 65... a4 {[%clk 0:00:05]} 66. e4 {[%clk
0:00:05]} 66... a3 {[%clk 0:00:05.3]} 67. Kc6 {[%clk 0:00:05.9]} 67... a2 {[%clk
0:00:05.4]} 68. e5 {[%clk 0:00:06.2]} 68... a1=Q {[%clk 0:00:05.3]} 69. e6
{[%clk 0:00:07.1]} 69... Qaa6+ {[%clk 0:00:05.5]} 70. Kc5 {[%clk 0:00:07.4]}
70... Qdxd6# {[%clk 0:00:05.9]} 0-1

[Event "*** Titled Tuesday Blitz"]
[Site "Chess.com"]
[Date "2020.11.03"]
[Round "9"]
[White "Chessalary"]
[Black "DraG0s3L"]
[Result "1-0"]
[WhiteElo "2440"]
[BlackElo "2581"]
[TimeControl "180+1"]
[EndTime "11:50:45 PST"]
[Termination "Chessalary won by resignation"]

1. d4 {[%clk 0:03:00.9]} 1... Nf6 {[%clk 0:02:57.4]} 2. c4 {[%clk 0:02:59.9]}
2... e6 {[%clk 0:02:58]} 3. Nc3 {[%clk 0:02:58.9]} 3... Bb4 {[%clk 0:02:58.6]}
4. e3 {[%clk 0:02:59]} 4... O-O {[%clk 0:02:57.3]} 5. Ne2 {[%clk 0:02:59.1]}
5... b6 {[%clk 0:02:54.8]} 6. a3 {[%clk 0:02:59.2]} 6... Be7 {[%clk 0:02:51.7]}
7. Ng3 {[%clk 0:02:57.7]} 7... Bb7 {[%clk 0:02:51.4]} 8. e4 {[%clk 0:02:56.5]}
8... d5 {[%clk 0:02:49.6]} 9. e5 {[%clk 0:02:49.4]} 9... Ne4 {[%clk 0:02:49.4]}
10. Ncxe4 {[%clk 0:02:40.1]} 10... dxe4 {[%clk 0:02:50.3]} 11. Be2 {[%clk
0:02:39.8]} 11... f5 {[%clk 0:02:42.7]} 12. exf6 {[%clk 0:02:37.7]} 12... Bxf6
{[%clk 0:02:42.8]} 13. Be3 {[%clk 0:02:37.3]} 13... Nc6 {[%clk 0:02:40.2]} 14.
Nxe4 {[%clk 0:02:29.9]} 14... Bxd4 {[%clk 0:02:39.5]} 15. Qb3 {[%clk 0:02:21.9]}
15... Na5 {[%clk 0:02:16.8]} 16. Qc2 {[%clk 0:02:10]} 16... Bxb2 {[%clk
0:01:52]} 17. Ng5 {[%clk 0:02:03.3]} 17... Rf5 {[%clk 0:01:46.3]} 18. Qxb2
{[%clk 0:02:02.1]} 18... Rxg5 {[%clk 0:01:44.3]} 19. Bxg5 {[%clk 0:02:03]} 19...
Qxg5 {[%clk 0:01:45.2]} 20. Qc3 {[%clk 0:01:52.4]} 20... Rd8 {[%clk 0:01:35.4]}
21. Rd1 {[%clk 0:01:47.7]} 21... Rxd1+ {[%clk 0:01:34.6]} 22. Kxd1 {[%clk
0:01:48]} 22... Qxg2 {[%clk 0:01:35.3]} 23. Re1 {[%clk 0:01:46.6]} 23... Qxf2
{[%clk 0:01:34.8]} 24. Bg4 {[%clk 0:01:45.6]} 24... Qa2 {[%clk 0:01:02.5]} 25.
Bxe6+ {[%clk 0:01:44.1]} 25... Kh8 {[%clk 0:01:03]} 26. Bf5 {[%clk 0:01:41.6]}
26... Bc6 {[%clk 0:00:56.8]} 27. Rg1 {[%clk 0:01:28.9]} 27... Qb3+ {[%clk
0:00:35.6]} 28. Qxb3 {[%clk 0:01:25.6]} 28... Nxb3 {[%clk 0:00:36.5]} 29. Re1
{[%clk 0:01:19.5]} 29... Nd4 {[%clk 0:00:33]} 30. Be4 {[%clk 0:01:16.8]} 30...
Ba4+ {[%clk 0:00:31.2]} 31. Kd2 {[%clk 0:01:15.6]} 31... g6 {[%clk 0:00:28.2]}
32. Bd5 {[%clk 0:01:12.8]} 32... c6 {[%clk 0:00:24.6]} 33. Bg2 {[%clk
0:01:12.2]} 33... c5 {[%clk 0:00:20.6]} 34. Re7 {[%clk 0:01:09.7]} 34... Bb3
{[%clk 0:00:20.7]} 35. Kc3 {[%clk 0:01:08.5]} 35... a5 {[%clk 0:00:19.4]} 36. h4
{[%clk 0:01:05.2]} 36... a4 {[%clk 0:00:19.3]} 37. Be4 {[%clk 0:01:04.8]} 37...
Ne2+ {[%clk 0:00:18.6]} 38. Kd2 {[%clk 0:01:00.8]} 38... Bxc4 {[%clk 0:00:17.6]}
39. h5 {[%clk 0:00:55.7]} 39... Nf4 {[%clk 0:00:15.6]} 40. hxg6 {[%clk
0:00:54.3]} 40... hxg6 {[%clk 0:00:15.4]} 41. Kc3 {[%clk 0:00:52.9]} 41... Bd5
{[%clk 0:00:14.1]} 42. Bc2 {[%clk 0:00:50.7]} 42... Kg8 {[%clk 0:00:09.8]} 43.
Bxa4 {[%clk 0:00:41.5]} 43... Kf8 {[%clk 0:00:10.2]} 44. Re5 {[%clk 0:00:39.7]}
44... Kf7 {[%clk 0:00:09.3]} 45. Bc2 {[%clk 0:00:36.5]} 45... Kf6 {[%clk
0:00:09]} 46. Re8 {[%clk 0:00:35.7]} 46... g5 {[%clk 0:00:09.4]} 47. a4 {[%clk
0:00:31.8]} 47... g4 {[%clk 0:00:09.5]} 48. Rf8+ {[%clk 0:00:27.3]} 48... Ke5
{[%clk 0:00:09.4]} 49. Rf5+ {[%clk 0:00:27]} 49... Kd6 {[%clk 0:00:09.7]} 50.
Rxf4 {[%clk 0:00:27.5]} 50... g3 {[%clk 0:00:10.3]} 51. Rg4 {[%clk 0:00:28.1]}
51... g2 {[%clk 0:00:10.9]} 52. Kd2 {[%clk 0:00:23]} 52... c4 {[%clk 0:00:09]}
53. Ke2 {[%clk 0:00:20.8]} 53... Kc5 {[%clk 0:00:09.4]} 54. Kf2 {[%clk
0:00:20.1]} 54... Kb4 {[%clk 0:00:08.3]} 55. Rg5 {[%clk 0:00:20.6]} 55... Ba8
{[%clk 0:00:06.3]} 56. Rg6 {[%clk 0:00:20]} 56... Kc3 {[%clk 0:00:06.1]} 57. Bd1
{[%clk 0:00:19.6]} 57... Kd2 {[%clk 0:00:06.2]} 58. Rd6+ {[%clk 0:00:19.1]}
58... Kc1 {[%clk 0:00:06.7]} 59. Be2 {[%clk 0:00:13.9]} 59... c3 {[%clk
0:00:06.8]} 60. Bd3 {[%clk 0:00:13.9]} 60... Kd2 {[%clk 0:00:03.8]} 61. Be4+
{[%clk 0:00:12.8]} 61... Kc1 {[%clk 0:00:04.4]} 62. Bxa8 {[%clk 0:00:12.4]}
62... c2 {[%clk 0:00:05.1]} 63. Be4 {[%clk 0:00:12.7]} 63... Kb2 {[%clk
0:00:05.7]} 64. Bxc2 {[%clk 0:00:13.2]} 64... Kxc2 {[%clk 0:00:06.3]} 65. Rxb6
{[%clk 0:00:13.8]} 65... Kc3 {[%clk 0:00:06.3]} 66. a5 {[%clk 0:00:13.6]} 66...
Kc4 {[%clk 0:00:07.2]} 67. a6 {[%clk 0:00:14.3]} 67... Kc5 {[%clk 0:00:08.1]}
68. Rb1 {[%clk 0:00:13.8]} 68... Kc6 {[%clk 0:00:08.3]} 69. a7 {[%clk
0:00:14.7]} 69... Kc7 {[%clk 0:00:09.2]} 70. a8=Q {[%clk 0:00:15.5]} 70... Kd6
{[%clk 0:00:09.7]} 71. Qxg2 {[%clk 0:00:15.5]} 71... Ke7 {[%clk 0:00:10.6]} 72.
Qg6 {[%clk 0:00:15.4]} 1-0

[Event "*** Titled Tuesday Blitz"]
[Site "Chess.com"]
[Date "2020.11.03"]
[Round "9"]
[White "Fandorine"]
[Black "Vanina1989"]
[Result "1-0"]
[WhiteElo "2830"]
[BlackElo "2622"]
[TimeControl "180+1"]
[EndTime "11:50:50 PST"]
[Termination "Fandorine won on time"]

1. Nf3 {[%clk 0:02:59.5]} 1... d5 {[%clk 0:02:59.7]} 2. e3 {[%clk 0:02:58.2]}
2... c6 {[%clk 0:02:59.4]} 3. c4 {[%clk 0:02:57.3]} 3... Bg4 {[%clk 0:02:59.4]}
4. Qb3 {[%clk 0:02:49.6]} 4... Qc7 {[%clk 0:02:58.3]} 5. cxd5 {[%clk 0:02:48.1]}
5... cxd5 {[%clk 0:02:46.5]} 6. Nc3 {[%clk 0:02:48.1]} 6... Bxf3 {[%clk
0:02:40.4]} 7. gxf3 {[%clk 0:02:42.6]} 7... e6 {[%clk 0:02:40.7]} 8. f4 {[%clk
0:02:40.4]} 8... Nf6 {[%clk 0:02:31.9]} 9. f5 {[%clk 0:02:37.4]} 9... Nbd7
{[%clk 0:02:21.7]} 10. fxe6 {[%clk 0:02:35.3]} 10... fxe6 {[%clk 0:02:21.9]} 11.
Bh3 {[%clk 0:02:21.5]} 11... Nc5 {[%clk 0:02:04.5]} 12. Qc2 {[%clk 0:02:20.6]}
12... e5 {[%clk 0:01:28.6]} 13. d4 {[%clk 0:01:55.7]} 13... exd4 {[%clk
0:01:27.2]} 14. exd4 {[%clk 0:01:56.6]} 14... Nce4 {[%clk 0:01:27.5]} 15. O-O
{[%clk 0:01:28.3]} 15... Bd6 {[%clk 0:01:23.2]} 16. Qa4+ {[%clk 0:01:24.8]}
16... Kf7 {[%clk 0:01:16.3]} 17. Nb5 {[%clk 0:01:11.3]} 17... Qb6 {[%clk
0:01:00.3]} 18. Nxd6+ {[%clk 0:01:00.4]} 18... Nxd6 {[%clk 0:01:00.4]} 19. Bf4
{[%clk 0:00:59.1]} 19... Rhe8 {[%clk 0:00:52.8]} 20. Bg2 {[%clk 0:00:48.3]}
20... Nde4 {[%clk 0:00:50.4]} 21. Be5 {[%clk 0:00:31.1]} 21... Rac8 {[%clk
0:00:45]} 22. Qa3 {[%clk 0:00:19.4]} 22... Kg8 {[%clk 0:00:42]} 23. Qh3 {[%clk
0:00:14.7]} 23... Rc2 {[%clk 0:00:34.4]} 24. Rac1 {[%clk 0:00:12.2]} 24... Qxb2
{[%clk 0:00:33.3]} 25. Rxc2 {[%clk 0:00:12.2]} 25... Qxc2 {[%clk 0:00:33.5]} 26.
Qh4 {[%clk 0:00:09.3]} 26... Qxa2 {[%clk 0:00:31.7]} 27. f3 {[%clk 0:00:05.3]}
27... Nd2 {[%clk 0:00:29.8]} 28. Rc1 {[%clk 0:00:03.4]} 28... Qb2 {[%clk
0:00:27.4]} 29. Re1 {[%clk 0:00:03.1]} 29... Qb6 {[%clk 0:00:22.4]} 30. Kh1
{[%clk 0:00:03.3]} 30... Nc4 {[%clk 0:00:21.3]} 31. Qg3 {[%clk 0:00:03.3]} 31...
Qa5 {[%clk 0:00:19]} 32. Rg1 {[%clk 0:00:03]} 32... Nh5 {[%clk 0:00:17.3]} 33.
Qh4 {[%clk 0:00:02.9]} 33... g6 {[%clk 0:00:17]} 34. Bh3 {[%clk 0:00:02.8]}
34... Nxe5 {[%clk 0:00:17.1]} 35. dxe5 {[%clk 0:00:03.7]} 35... Rxe5 {[%clk
0:00:16]} 36. f4 {[%clk 0:00:04.3]} 36... Qb4 {[%clk 0:00:13]} 37. Qd8+ {[%clk
0:00:03.4]} 37... Kg7 {[%clk 0:00:12.1]} 38. fxe5 {[%clk 0:00:03.8]} 38... Qe4+
{[%clk 0:00:09.2]} 39. Bg2 {[%clk 0:00:04.2]} 39... Qxe5 {[%clk 0:00:09.8]} 40.
Qxd5 {[%clk 0:00:04]} 40... Qe3 {[%clk 0:00:07.7]} 41. Qxb7+ {[%clk 0:00:03.8]}
41... Kh6 {[%clk 0:00:08.1]} 42. Qf3 {[%clk 0:00:04.4]} 42... Qd4 {[%clk
0:00:07.7]} 43. Re1 {[%clk 0:00:04.3]} 43... Nf4 {[%clk 0:00:07.2]} 44. Qe3
{[%clk 0:00:04.5]} 44... Qb4 {[%clk 0:00:07.4]} 45. Rf1 {[%clk 0:00:04.4]} 45...
g5 {[%clk 0:00:07.8]} 46. h4 {[%clk 0:00:04.2]} 46... Kg6 {[%clk 0:00:05.4]} 47.
hxg5 {[%clk 0:00:04.6]} 47... Nh5 {[%clk 0:00:02.9]} 48. Qe4+ {[%clk 0:00:04.2]}
48... Qxe4 {[%clk 0:00:01.9]} 49. Bxe4+ {[%clk 0:00:05.1]} 49... Kxg5 {[%clk
0:00:02.6]} 50. Kh2 {[%clk 0:00:04.9]} 50... Nf4 {[%clk 0:00:02.3]} 51. Bxh7
{[%clk 0:00:04]} 51... Ne2 {[%clk 0:00:01.7]} 52. Ra1 {[%clk 0:00:04.2]} 52...
Nd4 {[%clk 0:00:01.6]} 53. Bd3 {[%clk 0:00:04.4]} 53... Kf4 {[%clk 0:00:02]} 54.
Rxa7 {[%clk 0:00:03.9]} 54... Ke3 {[%clk 0:00:02.5]} 55. Bf1 {[%clk 0:00:04.4]}
55... Nf3+ {[%clk 0:00:02.7]} 56. Kg3 {[%clk 0:00:04.8]} 56... Nd2 {[%clk
0:00:03.1]} 57. Re7+ {[%clk 0:00:05]} 57... Kd4 {[%clk 0:00:02.6]} 58. Bg2
{[%clk 0:00:05.4]} 58... Nc4 {[%clk 0:00:02.7]} 59. Re4+ {[%clk 0:00:05.4]}
59... Kc5 {[%clk 0:00:02.8]} 60. Kf4 {[%clk 0:00:05.9]} 60... Nd6 {[%clk
0:00:02.9]} 61. Re5+ {[%clk 0:00:06]} 61... Kc4 {[%clk 0:00:03.3]} 62. Bf1+
{[%clk 0:00:06.6]} 62... Kd4 {[%clk 0:00:03.5]} 63. Re6 {[%clk 0:00:05.1]} 63...
Nb7 {[%clk 0:00:03.4]} 64. Bg2 {[%clk 0:00:04.4]} 64... Nc5 {[%clk 0:00:03.6]}
65. Rd6+ {[%clk 0:00:04.8]} 65... Kc4 {[%clk 0:00:04.2]} 66. Bf1+ {[%clk
0:00:04.8]} 66... Kb4 {[%clk 0:00:03.9]} 67. Ke3 {[%clk 0:00:05.4]} 67... Nb3
{[%clk 0:00:02.6]} 68. Rb6+ {[%clk 0:00:05.3]} 68... Kc3 {[%clk 0:00:02.9]} 69.
Rc6+ {[%clk 0:00:04.7]} 69... Kb4 {[%clk 0:00:03]} 70. Rc4+ {[%clk 0:00:05]}
70... Ka3 {[%clk 0:00:03.5]} 71. Bd3 {[%clk 0:00:05.2]} 71... Kb2 {[%clk
0:00:03.4]} 72. Rc2+ {[%clk 0:00:04]} 72... Ka1 {[%clk 0:00:03.6]} 73. Rh2
{[%clk 0:00:03.4]} 1-0